lending/lending_fUSD_20251124
["ID","MTS","AMOUNT","RATE_DAILY","PERIOD"]
[394802006,1763965861595,-500.0,0.00037804,8]
[394802007,1763965861605,-2095.5,0.00037804,8]
[394802008,1763965861615,-586.44,0.00037804,8]
[394802009,1763965861630,-500.0,0.00037804,8]
[394802010,1763965861639,-500.0,0.00037804,8]
[394802011,1763965861649,-500.0,0.00037804,8]
[394802012,1763965861659,-500.0,0.00037804,8]
[394802013,1763965861669,-500.0,0.00037808,120]
[394802014,1763965861679,-500.0,0.00037812,8]
[394802015,1763965861688,-500.0,0.00037812,8]
[394802016,1763965861698,-500.0,0.00037812,8]
[394802017,1763965861708,-973.33,0.00037812,8]
[394802018,1763965861718,-500.0,0.00037812,8]
[394802019,1763965861727,-500.0,0.00037812,8]
[394802020,1763965861737,-500.0,0.00037813,8]
[394802021,1763965861746,-500.0,0.00037813,8]
[394802022,1763965861755,-1000.0,0.00037813,8]
[394802023,1763965861765,-500.0,0.00037813,8]
[394802024,1763965861775,-500.0,0.00037813,8]
[394802025,1763965861784,-500.0,0.00037813,8]
[394802026,1763965861793,-500.0,0.00037813,8]
[394802027,1763965861804,-1721.82,0.00037813,8]
[394802028,1763965861813,-500.0,0.00037813,8]
[394802029,1763965861823,-500.0,0.00037813,8]
[394802030,1763965861832,-500.0,0.00037813,8]
[394802031,1763965861841,-500.0,0.00037813,8]
[394802032,1763965861850,-258.26029809,0.00037813,8]
[394802033,1763965861860,-500.0,0.00037813,2]
[394802034,1763965861870,-513.6180178,0.00037813,8]
[394802035,1763965861880,-500.0,0.00037813,8]
[394802036,1763965861890,-500.0,0.00037813,8]
[394802037,1763965861900,-2560.55,0.00037813,8]
[394802038,1763965861909,-500.0,0.00037813,8]
[394802039,1763965861919,-571.18,0.00037814,8]
[394802040,1763965861928,-500.0,0.00037814,8]
[394802041,1763965861938,-500.0,0.00037814,8]
[394802042,1763965861947,-803.08,0.00037814,8]
[394802043,1763965861957,-500.0,0.00037814,8]
[394802044,1763965861968,-500.0,0.00037814,8]
[394802045,1763965861981,-202.08820752,0.00037814,8]
[394802046,1763965861991,-500.0,0.00037814,8]
[394802047,1763965862001,-890.18,0.00037814,14]
[394802048,1763965862010,-500.0,0.00037814,8]
[394802049,1763965862022,-601.18326279,0.00037814,8]
[394802050,1763965862031,-199.56051591,0.00037814,8]
[394802051,1763965862041,-439.00708877,0.00037814,8]
[394802052,1763965862052,-500.0,0.00037814,8]
[394802053,1763965862061,-253.01139544,0.00037814,8]
[394802054,1763965862071,-187.92968772,0.00037814,8]
[394802055,1763965862081,-500.0,0.00037814,8]
[394802056,1763965862090,-500.0,0.00037814,8]
[394802057,1763965862099,-500.0,0.00037814,8]
[394802058,1763965862109,-625.69,0.00037814,8]
[394802059,1763965862119,-216.21517694,0.00037814,8]
[394802060,1763965862129,-158.00126731,0.00037814,8]
[394802061,1763965862138,-500.0,0.00037814,8]
[394802062,1763965862148,-500.0,0.00037814,8]
[394802063,1763965862157,-500.0,0.00037814,8]
[394802064,1763965862166,-500.0,0.00037814,8]
[394802065,1763965862175,-431.82232474,0.00037814,8]
[394802066,1763965862184,-500.0,0.00037814,8]
[394802067,1763965862194,-500.0,0.00037814,8]
[394802068,1763965862204,-1267.37,0.00037814,8]
[394802069,1763965862213,-500.0,0.00037814,8]
[394802070,1763965862223,-622.7678256,0.00037814,8]
[394802071,1763965862233,-500.0,0.00037814,8]
[394802072,1763965862242,-552.21315442,0.00037814,8]
[394802073,1763965862252,-363.58961583,0.00037814,8]
[394802074,1763965862261,-500.0,0.00037814,8]
[394802075,1763965862271,-500.0,0.00037814,8]
[394802076,1763965862280,-500.0,0.00037814,8]
[394802077,1763965862289,-255.15535476,0.00037814,8]
[394802078,1763965862298,-642.65670152,0.00037814,8]
[394802079,1763965862308,-600.0,0.00037815,30]
[394802080,1763965862317,-202.60254574,0.00037837,2]
[394802081,1763965862325,-500.0,0.00037838,8]
[394802082,1763965862334,-3317.41,0.00037845,120]
[394802083,1763965862343,-168.0,0.0003786,7]
[394802084,1763965862352,-1500.0,0.00037868,5]
[394802085,1763965862361,-503.21257311,0.00037868,5]
[394802086,1763965862373,-1226.10346467,0.00037899,20]
[394802087,1763965862382,-184.5,0.000379,8]
[394802088,1763965862392,-3317.41,0.00037902,120]
[394802089,1763965862401,-168.0,0.0003794,7]
[394802090,1763965862411,-3317.41,0.00037965,120]
[394802091,1763965862420,-242.0,0.00037973,120]
[394802092,1763965862429,-150.0,0.00037973,5]
[394802093,1763965862439,-500.0,0.00037973,8]
[394802094,1763965862448,-345.0850071,0.00037973,8]
[394802095,1763965862457,-500.0,0.00037978,7]
[394802096,1763965862467,-900.0,0.00037978,7]
[394802097,1763965862478,-500.0,0.00037999,2]
[394802098,1763965862488,-199244.99765486,0.00038,3]
[394802099,1763965862497,-617.0,0.00038,30]
[394802100,1763965862507,-168.0,0.00038001,7]
[394802101,1763965862517,-779.24425186,0.00038025,2]
[394802102,1763965862527,-299.0,0.00038032,2]
[394802103,1763965862538,-3317.41,0.00038035,120]
[394802104,1763965862547,-6636.89353573,0.00038045,2]
[394802105,1763965862557,-193.83373494,0.00038045,15]
[394802106,1763965862566,-168.0,0.00038063,2]
[394802107,1763965862576,-4333.78,0.00038078,8]
[394802108,1763965862585,-500.0,0.00038078,8]
[394802109,1763965862594,-2095.5,0.00038078,8]
[394802110,1763965862604,-586.44,0.00038078,8]
[394802111,1763965862613,-500.0,0.00038078,8]
[394802112,1763965862624,-500.0,0.00038078,8]
[394802113,1763965862633,-500.0,0.00038078,8]
[394802114,1763965862642,-500.0,0.00038078,8]
[394802115,1763965862651,-500.0,0.00038082,120]
[394802116,1763965862661,-387.961496,0.00038086,8]
[394802117,1763965862854,-112.038504,0.00038086,8]
[394802118,1763965862864,-520.71872775,0.00038086,8]
[394802119,1763965862876,-296.00243321,0.00038086,8]
[394802120,1763965862886,-973.33,0.00038086,8]
[394802121,1763965862895,-500.0,0.00038086,8]
[394802122,1763965862905,-486.41688492,0.00038086,8]
[394802123,1763965862925,-494.17609956,0.00036991,8]
[394802124,1763965862936,-5.82390044,0.00036991,8]
[394802125,1763965862946,-13.58311508,0.00038086,8]
[394802126,1763965862955,-500.0,0.00038087,8]
[394802127,1763965862965,-500.0,0.00038087,8]
[394802128,1763965862978,-1000.0,0.00038087,8]
[394802129,1763965862987,-500.0,0.00038087,8]
[394802130,1763965862996,-500.0,0.00038087,8]
[394802131,1763965863005,-500.0,0.00038087,8]
[394802132,1763965863016,-500.0,0.00038087,8]
[394802133,1763965863026,-1721.82,0.00038087,8]
[394802134,1763965863035,-500.0,0.00038087,8]
[394802135,1763965863045,-512.03240882,0.00038087,8]
[394802136,1763965863058,-500.0,0.00038087,8]
[394802137,1763965863067,-500.0,0.00038087,8]
[394802138,1763965863077,-500.0,0.00038087,2]
[394802139,1763965863086,-500.0,0.00038087,8]
[394802140,1763965863096,-260.74673015,0.00038087,8]
[394802141,1763965863105,-2560.55,0.00038087,8]
[394802142,1763965863115,-500.0,0.00038087,8]
[394802143,1763965863126,-571.18,0.00038088,8]
[394802144,1763965863136,-175.20988109,0.00038088,8]
[394802145,1763965863145,-597.75789647,0.00038088,8]
[394802146,1763965863154,-803.08,0.00038088,8]
[394802147,1763965863164,-295.32276485,0.00038088,8]
[394802148,1763965863178,-31.52853892,0.00038088,8]
[394802149,1763965863187,-459.3643311,0.00038088,8]
[394802150,1763965863198,-40.6356689,0.00038088,8]
[394802151,1763965863207,-182.41926804,0.00038088,8]
[394802152,1763965863216,-229.15089013,0.00038088,14]
[394802153,1763965863227,-555.4,0.00038088,14]
[394802154,1763965863238,-105.62910987,0.00038088,14]
[394802155,1763965863247,-500.0,0.00038088,8]
[394802156,1763965863256,-184.33089012,0.00038088,8]
[394802157,1763965863452,-500.0,0.00036718,8]
[394802158,1763965863461,-372.63423985,0.00036773,5]
[394802159,1763965863471,-500.0,0.00036992,8]
[394802160,1763965863480,-242.13822015,0.00037265,8]
[394802161,1763965863507,-184.823844,0.00036716,31]
[394802162,1763965863516,-257.86177985,0.00037265,8]
[394802163,1763965863526,-549.56655846,0.00037266,8]
[394802164,1763965863537,-167.4668689,0.00037539,8]
[394802165,1763965863548,-315.66910988,0.00038088,8]
[394802166,1763965863558,-500.0,0.00038088,8]
[394802167,1763965863567,-500.0,0.00038088,8]
[394802168,1763965863577,-500.0,0.00038088,8]
[394802169,1763965863586,-625.69,0.00038088,8]
[394802170,1763965863596,-322.68184911,0.00038088,8]
[394802171,1763965863605,-500.0,0.00038088,8]
[394802172,1763965863615,-500.0,0.00038088,8]
[394802173,1763965863625,-500.0,0.00038088,8]
[394802174,1763965863634,-500.0,0.00038088,8]
[394802175,1763965863644,-500.0,0.00038088,8]
[394802176,1763965863655,-1267.37,0.00038088,8]
[394802177,1763965863665,-500.0,0.00038088,8]
[394802178,1763965863674,-502.10041652,0.00038088,8]
[394802179,1763965863684,-500.0,0.00038088,8]
[394802180,1763965863694,-412.52571924,0.00038088,8]
[394802181,1763965863703,-500.0,0.00038088,8]
[394802182,1763965863713,-600.0,0.00038088,30]
[394802183,1763965863723,-500.0,0.00038112,8]
[394802184,1763965863732,-3317.41,0.00038115,120]
[394802185,1763965863742,-150.0,0.00038126,2]
[394802186,1763965863752,-3317.41,0.00038207,120]
[394802187,1763965863762,-845.353672,0.00038218,2]
[394802188,1763965863771,-6528.53148147,0.00038233,2]
[394802189,1763965863781,-500.0,0.00038247,8]
[394802190,1763965863791,-1636.0,0.000383,7]
[394802191,1763965863801,-929.97064,0.0003831,2]
[394802192,1763965863811,-3317.41,0.00038317,120]
[394802193,1763965863821,-248.86645724,0.0003833,2]
[394802194,1763965863832,-4333.78,0.00038352,8]
[394802195,1763965863842,-500.0,0.00038352,8]
[394802196,1763965863852,-2095.5,0.00038352,8]
[394802197,1763965863863,-586.44,0.00038352,8]
[394802198,1763965863878,-500.0,0.00038352,8]
[394802199,1763965863888,-500.0,0.00038352,8]
[394802200,1763965863899,-500.0,0.00038352,8]
[394802201,1763965864034,-617.01444457,0.00038352,8]
[394802202,1763965864068,-1000.0,0.00038356,120]
[394802203,1763965864078,-500.0,0.00038356,120]
[394802204,1763965864088,-167.11569033,0.00038356,2]
[394802205,1763965864099,-500.0,0.0003836,8]
[394802206,1763965864109,-973.33,0.0003836,8]
[394802207,1763965864121,-500.0,0.0003836,8]
[394802208,1763965864131,-500.0,0.0003836,8]
[394802209,1763965864142,-500.0,0.00038361,8]
[394802210,1763965864151,-500.0,0.00038361,8]
[394802211,1763965864161,-364.04706021,0.00038361,8]
[394802212,1763965864172,-500.0,0.00038361,8]
[394802213,1763965864181,-228.82350254,0.00038361,8]
[394802214,1763965864190,-500.0,0.00038361,8]
[394802215,1763965864200,-1721.82,0.00038361,8]
[394802216,1763965864209,-500.0,0.00038361,8]
[394802217,1763965864219,-500.0,0.00038361,8]
[394802218,1763965864229,-153.42658531,0.00038361,8]
[394802219,1763965864238,-500.0,0.00038361,2]
[394802220,1763965864249,-500.0,0.00038361,8]
[394802221,1763965864259,-2560.55,0.00038361,8]
[394802222,1763965864268,-500.0,0.00038361,8]
[394802223,1763965864278,-571.18,0.00038362,8]
[394802224,1763965864287,-803.08,0.00038362,8]
[394802225,1763965864298,-500.0,0.00038362,8]
[394802226,1763965864308,-890.18,0.00038362,30]
[394802227,1763965864317,-500.0,0.00038362,8]
[394802228,1763965864326,-500.0,0.00038362,8]
[394802229,1763965864336,-500.0,0.00038362,8]
[394802230,1763965864346,-500.0,0.00038362,8]
[394802231,1763965864355,-624.12096518,0.00038362,8]
[394802232,1763965864364,-625.69,0.00038362,8]
[394802233,1763965864375,-500.0,0.00038362,8]
[394802234,1763965864384,-152.40734197,0.00038362,8]
[394802235,1763965864393,-500.0,0.00038362,8]
[394802236,1763965864403,-500.0,0.00038362,8]
[394802237,1763965864412,-500.0,0.00038362,8]
[394802238,1763965864421,-1267.37,0.00038362,8]
[394802239,1763965864430,-454.93929088,0.00038362,8]
[394802240,1763965864440,-256.06286152,0.00038362,8]
[394802241,1763965864449,-500.0,0.00038362,8]
[394802242,1763965864458,-600.0,0.00038362,30]
[394802243,1763965864467,-577.4726601,0.0003837,2]
[394802244,1763965864476,-1801.72429061,0.0003837,2]
[394802245,1763965864485,-500.0,0.0003837,2]
[394802246,1763965864495,-1000.0,0.0003837,2]
[394802247,1763965864504,-1000.0,0.00038383,120]
[394802248,1763965864513,-500.0,0.00038386,8]
[394802249,1763965864523,-627.99750242,0.00038393,2]
[394802250,1763965864532,-1000.0,0.0003841,120]
[394802251,1763965864541,-167.21140473,0.0003841,120]
[394802252,1763965864551,-168.0,0.00038431,2]
[394802253,1763965864560,-1000.0,0.00038438,120]
[394802254,1763965864569,-202.60254574,0.0003845,2]
[394802255,1763965864578,-3317.41,0.0003845,120]
[394802256,1763965864587,-1000.0,0.00038465,120]
[394802257,1763965864597,-500.0,0.0003847,2]
[394802258,1763965864606,-1000.0,0.0003847,2]
[394802259,1763965864615,-153.69,0.00038474,2]
[394802260,1763965864630,-200.0,0.0003849,20]
[394802261,1763965864641,-822.0,0.00038493,2]
[394802262,1763965864651,-1256.0,0.00038493,2]
[394802263,1763965864662,-659.0,0.00038493,2]
[394802264,1763965864672,-252.0,0.00038493,2]
[394802265,1763965864683,-2660.0,0.00038493,2]
[394802266,1763965864694,-6499.0,0.00038493,2]
[394802267,1763965864709,-2471.965,0.00038493,2]
[394802268,1763965864720,-1320.0,0.00038493,2]
[394802269,1763965864730,-1000.0,0.00038493,120]
[394802270,1763965864743,-1554.39912759,0.000385,60]
[394802271,1763965864754,-1247.0,0.00038504,7]
[394802272,1763965864765,-1247.0,0.00038504,7]
[394802273,1763965864775,-1247.0,0.00038504,7]
[394802274,1763965864785,-1247.0,0.00038504,7]
[394802275,1763965864796,-1247.0,0.00038504,7]
[394802276,1763965864806,-1247.0,0.00038504,7]
[394802277,1763965864816,-167.65990661,0.00038504,7]
[394802278,1763965864826,-1000.0,0.0003852,120]
[394802279,1763965864836,-250.0,0.00038521,5]
[394802280,1763965864846,-6636.89353573,0.00038521,2]
[394802281,1763965864856,-464.66380905,0.00038521,8]
[394802282,1763965864865,-193.83373494,0.00038521,15]
[394802283,1763965864880,-1000.0,0.00038547,120]
[394802284,1763965864890,-500.0,0.0003857,2]
[394802285,1763965864900,-1000.0,0.0003857,2]
[394802286,1763965864910,-1000.0,0.0003857,2]
[394802287,1763965864919,-500.0,0.0003857,2]
[394802288,1763965864929,-1000.0,0.00038575,120]
[394802289,1763965864938,-189.482,0.00038585,2]
[394802290,1763965864948,-210.515,0.00038585,2]
[394802291,1763965864957,-150.222,0.00038585,2]
[394802292,1763965864967,-228.73,0.000386,30]
[394802293,1763965864979,-171.05,0.000386,14]
[394802294,1763965864989,-1000.0,0.00038602,120]
[394802295,1763965864999,-4333.78,0.00038626,8]
[394802296,1763965865008,-500.0,0.00038626,8]
[394802297,1763965865018,-2095.5,0.00038626,8]
[394802298,1763965865028,-586.44,0.00038626,8]
[394802299,1763965865037,-290.9384483,0.00038626,8]
[394802300,1763965865047,-500.0,0.00038626,8]
[394802301,1763965865058,-383.91478891,0.00038626,8]
[394802302,1763965865067,-401.69287715,0.00038629,30]
[394802303,1763965865076,-1000.0,0.0003863,120]
[394802304,1763965865086,-500.0,0.0003863,120]
[394802305,1763965865096,-500.0,0.00038634,8]
[394802306,1763965865106,-973.33,0.00038634,8]
[394802307,1763965865116,-500.0,0.00038634,8]
[394802308,1763965865129,-369.73647871,0.00038634,8]
[394802309,1763965865138,-555.83542792,0.00038635,8]
[394802310,1763965865147,-500.0,0.00038635,8]
[394802311,1763965865156,-500.0,0.00038635,8]
[394802312,1763965865166,-246.97775119,0.00038635,8]
[394802313,1763965865175,-1721.82,0.00038635,8]
[394802314,1763965865184,-500.0,0.00038635,8]
[394802315,1763965865194,-500.0,0.00038635,8]
[394802316,1763965865202,-500.0,0.00038635,2]
[394802317,1763965865212,-500.0,0.00038635,8]
[394802318,1763965865221,-2560.55,0.00038635,8]
[394802319,1763965865230,-227.54138936,0.00038635,8]
[394802320,1763965865239,-281.16056723,0.00038636,8]
[394802321,1763965865253,-290.01943277,0.00038636,8]
[394802322,1763965865262,-803.08,0.00038636,8]
[394802323,1763965865271,-500.0,0.00038636,8]
[394802324,1763965865280,-890.18,0.00038636,30]
[394802325,1763965865289,-500.0,0.00038636,8]
[394802326,1763965865299,-519.92333989,0.00038636,8]
[394802327,1763965865308,-500.0,0.00038636,8]
[394802328,1763965865317,-500.0,0.00038636,8]
[394802329,1763965865326,-625.69,0.00038636,8]
[394802330,1763965865335,-500.0,0.00038636,8]
[394802331,1763965865344,-235.78,0.00038636,8]
[394802332,1763965865354,-500.0,0.00038636,8]
[394802333,1763965865363,-500.0,0.00038636,8]
[394802334,1763965865375,-1267.37,0.00038636,8]
[394802335,1763965865384,-500.0,0.00038636,8]
[394802336,1763965865393,-600.0,0.00038636,30]
[394802337,1763965865403,-168.0,0.00038648,2]
[394802338,1763965865412,-500.0,0.0003866,8]
[394802339,1763965865421,-500.0,0.000387,120]
[394802340,1763965865430,-500.0,0.000387,120]
[394802341,1763965865439,-500.0,0.000387,120]
[394802342,1763965865448,-500.0,0.000387,120]
[394802343,1763965865457,-500.0,0.000387,120]
[394802344,1763965865466,-500.0,0.000387,120]
[394802345,1763965865475,-500.0,0.000387,120]
[394802346,1763965865484,-500.0,0.000387,120]
[394802347,1763965865497,-500.0,0.000387,120]
[394802348,1763965865506,-500.0,0.000387,120]
[394802349,1763965865515,-500.0,0.000387,120]
[394802350,1763965865524,-500.0,0.000387,120]
[394802351,1763965865533,-500.0,0.000387,120]
[394802352,1763965865542,-500.0,0.000387,120]
[394802353,1763965865551,-500.0,0.000387,120]
[394802354,1763965865561,-500.0,0.000387,120]
[394802355,1763965865571,-500.0,0.000387,120]
[394802356,1763965865580,-500.0,0.000387,120]
[394802357,1763965865590,-500.0,0.000387,120]
[394802358,1763965865600,-500.0,0.000387,120]
[394802359,1763965865611,-168.0,0.00038708,2]
[394802360,1763965865624,-227.6197095,0.00038722,7]
[394802361,1763965865635,-500.0,0.0003877,2]
[394802362,1763965865646,-500.0,0.0003877,2]
[394802363,1763965865658,-1000.0,0.0003877,2]
[394802364,1763965865668,-1000.0,0.0003877,2]
[394802365,1763965865679,-500.0,0.00038799,2]
[394802366,1763965865689,-500.0,0.00038799,2]
[394802367,1763965865699,-500.0,0.00038799,2]
[394802368,1763965865709,-173345.19179339,0.000388,2]
[394802369,1763965865722,-3439.16975584,0.000388,2]
[394802370,1763965865736,-12779.01965368,0.000388,2]
[394802371,1763965865748,-521.86461277,0.000388,2]
[394802372,1763965865762,-315.315,0.000388,2]
[394802373,1763965865774,-6855.90067227,0.000388,2]
[394802374,1763965865822,-151.0,0.00036716,31]
[394802375,1763965865832,-184.823844,0.00036717,31]
[394802376,1763965865842,-28.176176,0.00036718,31]
[394802377,1763965865854,-156.647668,0.00036718,31]
[394802378,1763965865865,-184.823844,0.00036718,31]
[394802379,1763965865882,-433.02848958,0.000388,2]
[394802380,1763965865894,-362.5,0.000388,2]
[394802381,1763965865910,-290.856,0.000388,2]
[394802382,1763965865923,-424.56000003,0.000388,2]
[394802383,1763965865936,-1054.83072615,0.000388,2]
[394802384,1763965865948,-8313.79910523,0.000388,2]
[394802385,1763965865960,-1207.04193035,0.000388,2]
[394802388,1763966258724,203.23,0.00013699,2]
[394802392,1763966548852,173.831,0.00022,30]
[394802393,1763966680873,-203.23,0.00020187,2]
[394802430,1763967032157,-196.89699311,0.00026676,2]
[394802431,1763967032168,-203.23,0.00026676,2]
[394802432,1763967032187,-163.08,0.00028367,2]
[394802433,1763967032198,-211.420782,0.00030613,2]
[394802434,1763967032208,-4322.0,0.000311,5]
[394802435,1763967032219,-156.17328583,0.00032013,65]
[394802436,1763967032229,-339.0126659,0.00032013,2]
[394802437,1763967032239,-606.0778354,0.00032113,2]
[394802438,1763967032250,-2954.52,0.00032326,2]
[394802439,1763967032260,-1200.0,0.00032978,3]
[394802440,1763967032270,-311.03269081,0.00032979,30]
[394802441,1763967032280,-150.0,0.00032979,30]
[394802442,1763967032292,-203.23,0.00033165,2]
[394802443,1763967032302,-2356.42574695,0.00034855,2]
[394802444,1763967032316,-2415.93964399,0.00034855,2]
[394802445,1763967032329,-821.9387104,0.00034855,2]
[394802446,1763967032344,-286.11200438,0.00034855,2]
[394802496,1763967040126,-11732.65389428,0.00034855,2]
[394802497,1763967040136,-500.0,0.00034873,2]
[394802498,1763967040150,-1493.12,0.00034888,120]
[394802499,1763967040161,-821.01,0.00034973,2]
[394802500,1763967040171,-8443.52731079,0.00035198,2]
[394802501,1763967040182,-1000.0,0.00035523,2]
[394802502,1763967040192,-156.17,0.00035615,42]
[394802503,1763967040203,-1061.996,0.00035615,42]
[394802504,1763967040213,-500.0,0.00035616,8]
[394802505,1763967040224,-500.0,0.00035616,8]
[394802506,1763967040234,-500.0,0.00035616,8]
[394802507,1763967040244,-500.0,0.00035616,8]
[394802508,1763967040254,-508.13573938,0.00035616,8]
[394802509,1763967040265,-508.82567448,0.00035616,8]
[394802510,1763967040275,-380.78177035,0.00035616,8]
[394802511,1763967040286,-427.79689668,0.00035616,8]
[394802512,1763967040300,-500.0,0.00035616,8]
[394802513,1763967040311,-500.0,0.00035616,8]
[394802514,1763967040322,-500.0,0.00035616,8]
[394802515,1763967040334,-433.38720863,0.00035616,8]
[394802516,1763967040344,-500.0,0.00035616,8]
[394802517,1763967040354,-500.0,0.00035616,8]
[394802518,1763967040364,-500.0,0.00035616,8]
[394802519,1763967040376,-439.2251492,0.00035616,8]
[394802520,1763967040387,-537.76860253,0.00035616,8]
[394802521,1763967040399,-433.44233531,0.00035616,8]
[394802522,1763967040409,-500.0,0.00035616,8]
[394802523,1763967040419,-500.0,0.00035616,8]
[394802524,1763967040430,-500.0,0.00035616,8]
[394802525,1763967040441,-406.41069065,0.00035616,8]
[394802526,1763967040451,-522.05436775,0.00035616,8]
[394802527,1763967040461,-500.0,0.00035616,8]
[394802528,1763967040472,-187.46997764,0.00035616,8]
[394802529,1763967040482,-500.0,0.00035616,8]
[394802530,1763967040492,-500.0,0.00035616,8]
[394802531,1763967040502,-500.0,0.00035616,8]
[394802532,1763967040513,-521.20932899,0.00035616,8]
[394802533,1763967040523,-515.05936534,0.00035616,8]
[394802534,1763967040533,-500.0,0.00035616,8]
[394802535,1763967040542,-500.0,0.00035616,8]
[394802536,1763967040552,-500.0,0.00035616,8]
[394802537,1763967040562,-500.0,0.00035616,8]
[394802538,1763967040572,-500.0,0.00035616,8]
[394802539,1763967040582,-540.80278263,0.00035616,8]
[394802540,1763967040592,-513.23633372,0.00035616,8]
[394802541,1763967040602,-560.82490818,0.00035616,8]
[394802542,1763967040612,-508.28571715,0.00035616,8]
[394802543,1763967040622,-290.06156294,0.00035616,8]
[394802544,1763967040633,-516.50512626,0.00035616,8]
[394802545,1763967040643,-500.0,0.00035616,8]
[394802546,1763967040653,-515.1255354,0.00035616,8]
[394802547,1763967040663,-501.36389698,0.00035616,8]
[394802548,1763967040673,-500.0,0.00035616,8]
[394802549,1763967040684,-515.14316595,0.00035616,8]
[394802550,1763967040694,-500.0,0.00035616,8]
[394802551,1763967040705,-638.52255715,0.00035616,8]
[394802552,1763967040714,-500.0,0.00035616,8]
[394802553,1763967040726,-513.37800384,0.00035616,8]
[394802554,1763967041022,-530.68207967,0.00035616,8]
[394802555,1763967041032,-519.68658198,0.00035616,8]
[394802556,1763967041041,-518.07758518,0.00035616,8]
[394802557,1763967041051,-500.0,0.00035616,8]
[394802558,1763967041061,-174.69310451,0.00035616,8]
[394802559,1763967041070,-500.0,0.00035616,8]
[394802560,1763967041079,-166.6747621,0.00035616,8]
[394802561,1763967041088,-500.0,0.00035616,8]
[394802562,1763967041097,-500.0,0.00035616,8]
[394802563,1763967041106,-500.0,0.00035616,8]
[394802564,1763967041116,-525.07980459,0.00035616,8]
[394802565,1763967041125,-500.0,0.00035616,8]
[394802566,1763967041134,-500.0,0.00035616,8]
[394802567,1763967041145,-500.0,0.00035616,8]
[394802568,1763967041155,-514.42061661,0.00035616,8]
[394802569,1763967041164,-500.69866438,0.00035616,8]
[394802570,1763967041174,-573.22151946,0.00035616,8]
[394802571,1763967041183,-606.65,0.00035616,8]
[394802572,1763967041192,-502.51130088,0.00035616,8]
[394802573,1763967041202,-500.0,0.00035616,8]
[394802574,1763967041211,-504.53905571,0.00035616,8]
[394802575,1763967041220,-559.64974991,0.00035616,8]
[394802576,1763967041230,-504.3269238,0.00035616,8]
[394802577,1763967041239,-607.42228948,0.00035616,8]
[394802578,1763967041249,-518.75754334,0.00035616,8]
[394802579,1763967041258,-477.75316565,0.00035616,8]
[394802580,1763967041268,-500.0,0.00035616,8]
[394802581,1763967041277,-500.0,0.00035616,8]
[394802582,1763967041289,-500.0,0.00035616,8]
[394802583,1763967041299,-500.0,0.00035616,8]
[394802584,1763967041309,-500.0,0.00035616,8]
[394802585,1763967041319,-500.0,0.00035616,8]
[394802586,1763967041330,-897.72,0.00035616,8]
[394802587,1763967041340,-363.58961583,0.00035616,8]
[394802588,1763967041350,-500.0,0.00035616,8]
[394802589,1763967041359,-500.0,0.00035616,8]
[394802590,1763967041369,-552.21315442,0.00035616,8]
[394802591,1763967041378,-500.0,0.00035616,8]
[394802592,1763967041387,-642.65670152,0.00035616,8]
[394802593,1763967041397,-597.85528247,0.00035616,8]
[394802594,1763967041406,-688.79,0.00035616,14]
[394802595,1763967041414,-500.0,0.00035673,5]